bitfinex-derivatives/quotes_ETHF0:USTF0_20241230
["timestamp","ask_amount","ask_price","bid_price","bid_amount"]
[1735524790255,0.4419,3419.4,3419.1,3.2078]
[1735524790461,0.29306,3419.2,3419.1,3.2078]
[1735524790650,0.9186,3419.4,3418.6,0.29311]
[1735524790857,0.9186,3419.4,3418.4,5.55309664]
[1735524790858,0.38032445,3418.9,3418.4,5.55309664]
[1735524791060,0.67340445,3419.0,3418.7,2.63839664]
[1735524791254,0.38032445,3419.1,3418.9,0.29309]
[1735524791458,0.29309,3418.9,3418.6,0.29311]
[1735524791658,0.38029324,3418.8,3418.6,0.29311]
[1735524791955,0.38029324,3418.9,3418.7,2.34529664]
[1735524792156,0.38029324,3419.2,3419.1,0.29307]
[1735524792361,0.4419,3419.4,3419.3,0.29305]
[1735524792558,0.82219324,3419.4,3419.3,0.29305]
[1735524792764,3.50083,3419.6,3419.3,0.29305]
[1735524792965,0.38026953,3419.4,3419.3,0.29305]
[1735524795664,0.38026953,3419.4,3419.2,0.29306]
[1735524795965,0.38026953,3419.4,3419.1,2.34529664]
[1735524796167,0.38026953,3419.3,3419.2,0.29306]
[1735524796763,0.38026953,3419.3,3419.1,2.34529664]
[1735524796968,0.29309,3418.9,3418.8,3.2078]
[1735524797573,0.29314,3418.3,3418.2,3.2078]
[1735524798177,0.4574,3418.3,3418.1,4.86742078]
[1735524798472,0.86048447,3418.3,3418.1,4.86742078]
[1735524798772,0.86048447,3418.3,3418.1,0.29315]
[1735524798975,0.40308447,3418.2,3418.0,0.29316]
[1735524799275,0.40326766,3418.2,3418.1,0.29315]
[1735524799772,0.40326766,3418.2,3418.0,0.29316]
[1735524799962,0.4034301,3418.2,3418.0,0.29316]
[1735524800376,0.4034301,3418.1,3418.0,0.29316]
[1735524802376,0.4034301,3418.1,3417.9,2.34529664]
[1735524802377,3.2078,3418.1,3417.7,40.8]
[1735524802575,0.40393793,3417.8,3417.7,0.29319]
[1735524802778,0.40393793,3417.8,3417.4,3.2078]
[1735524802779,3.50096,3418.1,3417.8,0.29318]
[1735524803075,3.50096,3418.1,3417.4,3.2078]
[1735524803076,0.29317,3418.0,3417.4,3.2078]
[1735524803371,0.29317,3418.0,3417.7,0.29318]
[1735524803977,3.2078,3418.1,3417.4,3.2078]
[1735524804176,0.29317,3417.9,3417.6,0.29319]
[1735524804578,0.29317,3417.9,3417.4,3.2078]
[1735524804780,0.40412905,3417.5,3417.4,3.50101]
[1735524805372,0.40412905,3417.6,3417.5,0.29321]
[1735524805875,0.69732905,3417.6,3417.4,3.2078]
[1735524806075,1.18272316,3417.5,3417.4,3.2078]
[1735524806267,0.77881,3417.5,3417.4,3.2078]
[1735524807277,0.4856,3417.5,3416.8,3.2078]
[1735524807570,0.40331854,3417.2,3416.8,3.2078]
[1735524807876,0.29325,3417.0,3416.8,3.2078]
[1735524808175,0.29325,3417.0,3416.5,40.8]
[1735524808176,3.2078,3417.2,3416.5,40.8]
[1735524808479,0.29329,3416.5,3416.4,4.57427078]
[1735524809275,0.40289829,3416.5,3416.3,3.2078]
[1735524809478,0.2933,3416.4,3416.3,3.2078]
[1735524809873,0.29332,3416.3,3415.9,0.29334]
[1735524810170,0.29332,3416.2,3415.8,3.50115]
[1735524810375,0.29331,3416.3,3415.9,0.29334]
[1735524810674,0.29333,3416.2,3415.8,3.2078]
[1735524810871,0.29329,3416.5,3415.8,3.2078]
[1735524811176,0.29333,3416.2,3415.8,3.2078]
[1735524811679,0.29336,3415.8,3415.3,0.29339]
[1735524811873,0.29336,3415.7,3415.3,0.29339]
[1735524812078,0.77795,3415.8,3415.4,0.29339]
[1735524812277,0.40223311,3416.1,3415.5,2.34529664]
[1735524812476,0.2933,3416.4,3416.0,0.29333]
[1735524812681,0.29334,3416.0,3415.9,3.2078]
[1735524813968,3.2078,3416.2,3415.4,3.2078]
[1735524814181,0.2934,3415.3,3414.9,5.55309664]
[1735524814479,3.2078,3415.7,3414.9,5.55309664]
[1735524814677,0.2934,3415.3,3414.9,5.84651664]
[1735524814876,0.2934,3415.3,3415.0,0.29342]
[1735524815177,1.4198,3415.6,3414.9,5.55309664]
[1735524815178,0.29338,3415.5,3414.9,5.55309664]
[1735524815379,0.29338,3415.5,3415.1,0.29341]
[1735524815681,0.29338,3415.5,3415.2,0.2934]
[1735524816281,0.29339,3415.4,3415.1,0.29341]
[1735524816772,0.29341,3415.2,3414.9,5.84652664]
[1735524816976,3.2078,3415.1,3414.3,3.2078]
[1735524817178,0.29344,3414.8,3414.4,0.29347]
[1735524817376,0.29345,3414.7,3414.3,3.50128]
[1735524817572,0.29345,3414.8,3414.3,3.50128]
[1735524817777,0.29346,3414.6,3414.3,3.2078]
[1735524818179,1.0022,3414.7,3414.3,3.2078]
[1735524818380,0.4557,3414.6,3414.3,3.2078]
[1735524818577,0.74916,3414.6,3414.3,3.2078]
[1735524818982,0.29347,3414.4,3414.3,3.2078]
[1735524819182,0.29347,3414.5,3414.3,3.2078]
[1735524821186,0.74916,3414.6,3414.3,3.2078]
[1735524821486,0.74916,3414.6,3414.3,3.50128]
[1735524822373,0.4557,3414.6,3414.3,3.2078]
[1735524822685,0.74916,3414.6,3414.3,3.50128]
[1735524822888,0.29347,3414.5,3414.3,3.2078]
[1735524823987,0.74916,3414.6,3414.3,3.50128]
[1735524825080,3.50122,3415.1,3414.4,2.34529664]
[1735524825281,3.60633766,3415.1,3414.4,2.85499664]
[1735524825484,0.29342,3415.0,3414.7,0.29345]
[1735524825882,0.29342,3415.0,3414.4,0.5097]
[1735524825883,0.29342,3415.0,3414.8,0.29344]
[1735524826082,3.60654451,3415.1,3414.5,0.29346]
[1735524826282,0.39874451,3415.0,3414.3,3.2078]
[1735524826582,0.69217451,3414.9,3414.6,0.29345]
[1735524826985,0.29344,3414.8,3414.6,0.29345]
[1735524827187,0.29344,3414.8,3414.5,0.29346]
[1735524827388,0.69267648,3414.8,3414.5,0.29346]
[1735524827592,0.29344,3414.8,3414.6,0.29345]
[1735524827889,0.29344,3414.8,3414.5,0.29346]
[1735524828093,0.39923648,3414.9,3414.3,3.2078]
[1735524828580,0.39923648,3414.8,3414.7,0.29344]
[1735524828891,0.69267648,3414.8,3414.6,0.29345]
[1735524829187,0.69268648,3414.7,3414.5,0.29346]
[1735524829384,0.29345,3414.7,3414.5,0.29346]
[1735524829689,0.29345,3414.7,3414.4,0.29347]
[1735524829889,0.39949285,3414.5,3414.4,0.29347]
[1735524830291,0.29345,3414.7,3414.3,3.2078]
[1735524830788,0.39982102,3414.4,3414.3,3.50128]
[1735524831490,3.2078,3415.1,3414.3,3.50128]
[1735524831688,0.29347,3414.5,3414.3,3.50128]
[1735524832690,0.5202,3414.6,3414.3,3.2078]
[1735524832885,0.5202,3414.6,3414.4,0.29347]
[1735524833088,0.5202,3414.6,3414.3,3.2078]
[1735524833279,0.5202,3414.6,3414.5,0.29346]
[1735524833889,0.4999,3414.8,3414.7,0.29345]
[1735524834090,0.4999,3414.8,3414.3,3.2078]
[1735524834091,0.5202,3415.0,3414.3,3.2078]
[1735524834290,0.40054733,3414.4,3414.3,3.2078]
[1735524834489,0.81363,3415.0,3414.7,0.29344]
[1735524834686,0.81363,3415.0,3414.8,0.29344]
[1735524835590,0.29344,3414.8,3414.4,0.29347]
[1735524835891,0.81363,3415.0,3414.8,0.29344]
[1735524836592,0.29344,3414.8,3414.6,0.29345]
[1735524836783,0.5202,3415.0,3414.6,0.29345]
[1735524837093,0.29345,3414.7,3414.6,0.29345]
[1735524838691,0.29345,3414.7,3414.3,3.2078]
[1735524838888,0.29345,3414.7,3414.5,0.29346]
[1735524839494,0.5202,3415.0,3414.3,3.50128]
[1735524839495,0.29347,3414.4,3414.3,3.50128]
[1735524839797,0.29347,3414.5,3414.3,3.50128]
[1735524840498,0.29347,3414.4,3414.3,3.2078]
[1735524842195,0.29347,3414.4,3414.3,3.50128]
[1735524842396,0.78886,3414.6,3414.3,3.2078]
[1735524842597,0.4954,3414.6,3414.5,0.29346]
[1735524842795,1.10835735,3415.0,3414.7,0.29345]
[1735524842796,0.29344,3414.8,3414.7,0.29345]
[1735524843896,0.29344,3414.8,3414.6,0.29345]
[1735524844599,0.29346,3414.5,3414.4,0.29347]
[1735524844805,0.5202,3415.0,3414.4,0.29347]
[1735524844806,0.29346,3414.6,3414.4,0.29347]
[1735524845502,0.29347,3414.4,3414.3,3.50128]
[1735524845803,0.29347,3414.5,3414.4,0.29347]
[1735524846602,3.2078,3414.7,3414.1,5.55309664]
[1735524846807,3.2078,3414.7,3414.6,0.29346]
[1735524847901,3.2078,3415.1,3415.0,0.29342]
[1735524848701,3.78331591,3415.5,3415.0,2.63871664]
[1735524849005,3.2078,3415.5,3414.7,2.83029664]
[1735524849309,3.2078,3415.5,3414.7,0.485]
[1735524849605,0.29342,3415.1,3414.8,0.29343]
[1735524850011,3.2078,3415.1,3414.5,0.5244]
[1735524850205,0.29346,3414.6,3414.2,3.2078]
[1735524850402,1.5384,3415.0,3414.2,3.2078]
[1735524850700,0.29346,3414.7,3414.4,0.29347]
[1735524850905,0.29346,3414.6,3414.4,0.29347]
[1735524851205,4.45921255,3415.0,3414.2,3.2078]
[1735524851407,4.45921255,3415.0,3414.3,0.29348]
[1735524851707,0.29347,3414.5,3414.3,0.29348]
[1735524852003,4.45921255,3415.0,3414.2,3.2078]
[1735524852197,5.55309664,3414.7,3414.2,3.2078]
[1735524852403,0.29348,3414.4,3414.2,3.2078]
[1735524852704,0.5134,3414.3,3414.2,3.50129]
[1735524853897,0.57551591,3414.6,3414.5,0.29346]
[1735524854100,3.2078,3414.7,3414.6,0.29346]
[1735524855009,3.2078,3415.4,3415.3,0.2934]
[1735524855503,3.2078,3415.4,3414.7,2.86459664]
[1735524855707,3.2078,3415.4,3415.3,0.2934]
[1735524856205,2.27403632,3415.5,3415.4,0.29339]
[1735524856508,0.5235,3415.6,3415.2,3.2078]
[1735524856808,0.5235,3415.6,3414.8,3.2078]
[1735524857009,0.29338,3415.5,3415.3,0.29339]
[1735524857606,0.81687,3415.6,3415.3,0.29339]
[1735524857803,0.5235,3415.6,3414.9,4.58251163]
[1735524858310,0.5235,3415.6,3415.5,0.29338]
[1735524859304,0.29339,3415.4,3415.1,0.29341]
[1735524859601,0.29339,3415.4,3415.2,0.2934]
[1735524860205,6.29870632,3415.6,3415.3,0.29339]
[1735524861309,6.00533632,3415.6,3415.3,0.29339]
[1735524861504,6.00533632,3415.6,3415.0,4.58251163]
[1735524861712,7.14235449,3415.6,3415.3,0.29339]
[1735524861906,7.43572449,3415.6,3415.3,0.29339]
[1735524862708,0.29338,3415.5,3415.3,0.29339]
[1735524864312,2.5805081,3415.5,3414.9,4.58251163]
[1735524864609,2.2871281,3415.5,3415.4,0.29339]
[1735524866411,0.29339,3415.4,3415.2,0.2934]
[1735524866612,0.29341,3415.1,3415.0,4.87593163]
[1735524866811,0.29341,3415.1,3415.0,4.58251163]
[1735524867009,0.29341,3415.1,3415.0,4.87593163]
[1735524867510,8.36372474,3415.6,3415.0,4.58251163]
[1735524867711,0.29341,3415.2,3415.1,0.29341]
[1735524867913,2.5805381,3415.2,3415.1,0.29341]
[1735524868716,2.2871281,3415.2,3415.1,0.29341]
[1735524870210,5.4949281,3415.2,3414.6,4.58251163]
[1735524870410,0.4822,3415.1,3414.6,4.58251163]
[1735524870731,0.29344,3414.8,3414.7,4.58251163]
[1735524871922,3.2078,3414.8,3414.2,4.58251163]
[1735524872130,0.29348,3414.3,3414.2,4.58251163]
[1735524872814,0.82498,3414.3,3414.2,4.58251163]
[1735524873826,0.82498,3414.3,3414.0,0.29351]
[1735524874023,0.5138,3414.2,3414.1,0.2935]
[1735524874630,2.2871281,3414.4,3414.3,0.29348]
[1735524876115,0.4952,3414.5,3414.1,7.79031163]
[1735524876319,0.4952,3414.5,3414.4,0.29347]
[1735524877431,0.4952,3414.5,3414.1,7.79031163]
[1735524877726,3.2078,3414.4,3414.2,0.29348]
[1735524877929,3.2078,3414.4,3414.3,0.29348]
[1735524878923,3.2078,3414.4,3414.0,4.58251163]
[1735524879130,3.2078,3414.4,3414.2,0.29349]
[1735524879731,3.2078,3414.4,3414.0,4.58251163]
[1735524879926,1.01,3414.3,3414.0,4.58251163]
[1735524880230,1.01,3414.3,3414.1,0.29349]
[1735524880933,0.5108,3414.3,3414.2,0.29349]
[1735524881131,3.2078,3414.4,3414.2,0.29349]
[1735524881527,3.50128,3414.4,3414.1,0.2935]
[1735524882625,0.29351,3414.0,3413.9,4.58251163]
[1735524882927,5.84660664,3414.0,3413.9,4.58251163]
[1735524883128,5.55309664,3414.0,3413.8,4.58251163]
[1735524883325,1.83042,3413.9,3413.8,4.58251163]
[1735524884237,1.83042,3413.9,3413.3,11.749849]
[1735524884238,1.5369,3413.9,3413.3,0.29357]
[1735524884436,0.40295742,3413.4,3413.3,0.29357]
[1735524884736,0.40295742,3413.4,3413.2,5.59301163]
[1735524885034,0.29357,3413.3,3413.2,4.58251163]
[1735524885630,0.29357,3413.3,3413.0,4.87610163]
[1735524885831,0.40280665,3413.1,3413.0,4.58251163]
[1735524886031,5.55309664,3413.1,3413.0,4.58251163]
[1735524886227,5.84667664,3413.1,3413.0,4.58251163]
[1735524886431,6.36697664,3413.1,3413.0,4.58251163]
[1735524887329,0.29361,3412.9,3412.6,0.29363]
[1735524887531,3.61015266,3412.7,3412.6,0.29363]
[1735524888128,3.2078,3412.7,3412.6,0.29363]
[1735524888437,3.90377266,3412.7,3412.4,0.29364]
[1735524888733,0.40235266,3412.6,3412.5,0.29363]
[1735524888930,3.2078,3412.7,3412.2,1.0335]
[1735524889234,0.69571658,3412.5,3412.2,0.29366]
[1735524889832,0.40207658,3412.5,3412.0,1.0106]
[1735524890033,0.40207658,3412.5,3412.3,0.29365]
[1735524890327,0.40207658,3412.5,3412.4,0.29364]
[1735524890633,0.40207658,3412.5,3412.0,1.0106]
[1735524890931,0.69571658,3412.6,3412.3,0.29365]
[1735524891137,0.29364,3412.5,3412.3,0.29365]
[1735524891427,0.69570658,3412.6,3412.3,0.29365]
[1735524892230,0.40129633,3412.6,3412.5,0.29364]
[1735524892533,0.69491633,3412.8,3412.5,0.29363]
[1735524892731,0.40129633,3412.8,3412.3,3.2078]
[1735524892929,0.29367,3412.1,3411.9,3.2078]
[1735524893227,2.63895664,3412.2,3411.9,3.2078]
[1735524893632,0.29368,3412.0,3411.9,3.2078]
[1735524894528,0.29368,3412.0,3411.0,4.58251163]
[1735524894529,0.29375,3411.2,3411.1,3.2078]
[1735524894728,2.34529664,3411.4,3411.1,3.2078]
[1735524894932,0.29375,3411.2,3411.1,3.2078]
[1735524895134,2.34529664,3411.4,3411.0,4.58251163]
[1735524895135,0.29376,3411.1,3411.0,4.58251163]
[1735524895330,2.63905664,3411.1,3411.0,4.58251163]
[1735524895936,0.40071196,3411.2,3410.9,0.29377]
[1735524896235,3.90221196,3411.8,3411.3,0.29373]
[1735524896429,3.2078,3411.8,3411.5,0.29372]
[1735524896630,0.5258,3412.1,3411.6,3.2078]
[1735524896934,0.81948,3412.1,3411.7,40.8]
[1735524897532,0.29369,3411.9,3411.7,40.8]
[1735524897731,0.92651196,3412.1,3411.7,40.8]
[1735524898027,0.29369,3411.9,3411.7,40.8]
[1735524898429,0.2937,3411.8,3411.7,40.8]
[1735524898633,0.92569194,3412.1,3411.6,3.2078]
[1735524898829,0.5258,3412.1,3411.6,3.2078]
[1735524899035,0.29367,3411.8,3411.6,3.2078]
[1735524899537,0.5258,3412.1,3411.6,3.2078]
[1735524899538,0.29368,3411.7,3411.6,3.2078]
[1735524900334,0.29369,3411.6,3411.4,1.0291]
[1735524900536,0.29369,3411.5,3411.4,1.0291]
[1735524900931,0.39985452,3411.6,3411.2,3.2078]
[1735524901235,0.29371,3411.3,3411.2,3.2078]
[1735524902734,1.40300544,3411.3,3410.4,3.2078]
[1735524903037,0.29379,3410.4,3410.3,0.534]
[1735524903538,2.34529664,3410.5,3409.9,3.2078]
[1735524903739,0.29382,3410.1,3410.0,0.534]
[1735524904339,2.34529664,3410.5,3409.8,0.5312]
[1735524904340,0.29383,3409.9,3409.8,0.5312]
[1735524904837,0.39891084,3410.2,3409.8,0.5312]
[1735524905139,0.29381,3410.2,3409.9,0.29383]
[1735524905538,0.2938,3410.3,3410.0,0.29382]
[1735524906140,0.29381,3410.2,3409.9,0.29382]
[1735524906437,3.60671084,3410.4,3410.0,0.29382]
[1735524906632,0.39891084,3410.5,3410.3,3.2078]
[1735524906829,3.2078,3410.9,3410.3,3.2078]
[1735524906830,3.60658756,3410.9,3410.6,0.29377]
[1735524907035,3.60658756,3410.9,3410.4,0.4986]
[1735524907036,3.2078,3410.9,3410.5,2.34529664]
[1735524907236,3.2078,3410.9,3410.8,0.29375]
[1735524907841,3.2078,3410.9,3410.5,0.4882]
[1735524907842,0.39894207,3411.0,3410.9,0.29374]
[1735524908042,0.39894207,3411.4,3410.8,5.55309664]
[1735524908542,1.0262,3411.6,3411.3,0.29371]
[1735524908543,1.31989,3411.6,3411.3,0.29371]
[1735524908944,1.0262,3411.6,3410.8,3.2078]
[1735524909135,0.29371,3411.4,3411.1,0.29372]
[1735524909334,0.29373,3411.2,3410.9,0.29374]
[1735524909840,0.39948092,3411.0,3410.9,0.29374]
[1735524910039,3.2078,3412.3,3410.9,7.34529664]
[1735524910244,3.2078,3412.3,3411.5,3.2078]
[1735524910436,3.2078,3412.3,3411.6,0.5051]
[1735524910639,3.2078,3412.3,3412.1,0.29364]
[1735524910942,3.2078,3412.3,3411.6,0.5051]
[1735524911147,3.2078,3412.3,3412.1,0.29363]
[1735524911444,0.29365,3412.0,3411.7,0.29367]
[1735524912044,3.2078,3412.3,3411.6,2.85039664]
[1735524912238,3.2078,3412.3,3412.2,0.29363]
[1735524912438,3.2078,3412.3,3411.7,0.29368]
[1735524912439,0.29365,3412.1,3411.7,0.29368]
[1735524912644,0.29365,3412.0,3411.7,0.29368]
[1735524912850,0.29367,3411.8,3411.6,0.5051]
[1735524913143,2.34529664,3412.0,3411.5,3.2078]
[1735524913342,0.4939,3411.7,3411.1,3.2078]
[1735524913538,3.2078,3411.9,3411.1,3.2078]
[1735524913742,3.2078,3411.9,3411.2,0.5385]
[1735524913940,0.5041,3412.1,3411.5,3.2078]
[1735524914141,0.5041,3412.1,3411.9,0.29365]
[1735524914348,0.79775,3412.1,3411.8,0.29366]
[1735524914539,0.5041,3412.1,3411.6,0.5438]
[1735524914741,0.29366,3412.0,3411.7,0.29367]
[1735524914944,0.5041,3412.1,3411.6,0.5438]
[1735524915137,0.29366,3411.9,3411.6,0.29368]
[1735524915337,0.2937,3411.4,3411.2,0.5385]
[1735524915544,0.29369,3411.6,3411.3,0.29371]
[1735524915748,3.2078,3411.9,3411.2,0.5385]
[1735524916145,0.29368,3411.7,3411.4,0.2937]
[1735524916345,0.29367,3411.8,3411.5,0.29369]
[1735524916943,3.2078,3411.9,3411.5,0.29369]
[1735524916944,0.29368,3411.7,3411.5,0.29369]
[1735524917140,3.2078,3411.9,3411.2,0.5385]
[1735524917346,0.29367,3411.8,3411.5,0.29369]
[1735524917649,3.50146,3411.9,3411.6,0.29368]
[1735524918048,0.5041,3412.1,3411.5,3.2078]
[1735524918346,1.59382767,3412.2,3411.5,3.2078]
[1735524918347,0.4939,3412.2,3412.1,0.29364]
[1735524918544,3.2078,3412.3,3411.5,3.2078]
[1735524918740,3.2078,3412.3,3412.2,0.29363]
[1735524921351,3.2078,3412.9,3412.8,0.29358]
[1735524921542,0.29356,3413.1,3412.8,0.29358]
[1735524921844,0.83117,3413.0,3412.2,5.55309664]
[1735524922049,0.40312339,3412.3,3412.2,5.84672664]
[1735524922438,0.40312339,3412.3,3412.2,3.50143]
[1735524922750,0.29358,3412.9,3412.7,0.29358]
[1735524922952,4.03897,3413.0,3412.8,0.29358]
[1735524923150,3.7454,3413.0,3412.9,0.29357]
[1735524923347,3.2078,3413.0,3412.9,0.29357]
[1735524924751,3.2078,3413.0,3412.6,0.5289]
[1735524924946,3.2078,3413.0,3412.2,3.2078]
[1735524925254,0.40272901,3412.3,3412.2,3.2078]
[1735524925449,2.86469664,3412.9,3412.4,0.29361]
[1735524925450,0.29358,3412.8,3412.4,0.29361]
[1735524925652,2.86469664,3412.9,3412.4,0.29361]
[1735524925653,0.2936,3412.6,3412.4,0.29361]
[1735524926353,0.29359,3412.7,3412.5,0.29361]
[1735524928255,0.5194,3412.9,3412.8,0.29358]
[1735524928455,1.64789305,3413.3,3412.6,3.2078]
[1735524928651,1.89124,3413.3,3413.1,0.29355]
[1735524928853,0.29356,3413.1,3412.9,0.29357]
[1735524929052,1.5977,3413.3,3412.8,0.29358]
[1735524929251,1.5977,3413.3,3412.6,3.2078]
[1735524929446,3.2078,3413.4,3412.8,2.34529664]
[1735524929652,0.40206287,3413.0,3412.9,0.29357]
[1735524930255,0.40206287,3413.1,3413.0,0.29356]
[1735524930454,0.40206287,3413.2,3413.1,0.29356]
[1735524930655,0.40188277,3413.2,3413.1,5.84665664]
[1735524930958,0.40188277,3413.3,3413.2,0.29355]
[1735524931555,0.40188277,3413.4,3413.3,0.29354]
[1735524931752,0.40188277,3413.4,3413.1,5.55309664]
[1735524931753,0.5384,3413.7,3413.1,5.55309664]
[1735524931954,0.29355,3413.2,3412.7,3.7455]
[1735524932262,0.40177428,3413.1,3413.0,0.29356]
[1735524932560,0.29354,3413.3,3413.1,0.29355]
[1735524932758,0.29356,3413.1,3412.8,0.29358]
[1735524932951,0.29358,3412.8,3412.7,3.2078]
[1735524933156,0.69444737,3412.8,3412.7,3.2078]
[1735524933559,0.69450618,3412.8,3412.7,3.2078]
[1735524933859,0.29358,3412.8,3412.7,3.2078]
[1735524934458,0.29358,3412.9,3412.7,3.50139]
[1735524934763,1.33647,3413.0,3412.7,3.50139]
[1735524935060,0.40114124,3412.9,3412.8,0.29358]
[1735524935456,0.40139953,3412.9,3412.7,3.2078]
[1735524935659,0.40139953,3412.9,3412.8,0.29358]
[1735524936562,3.2078,3413.2,3412.7,3.2078]
[1735524936761,3.2078,3413.2,3413.1,0.29356]
[1735524937466,3.60960295,3413.2,3413.1,0.29356]
[1735524937668,0.40180295,3413.2,3413.1,3.50136]
[1735524937858,0.29354,3413.4,3413.1,3.50136]
[1735524938058,0.40196823,3413.2,3412.8,0.4956]
[1735524938460,0.40196823,3413.2,3413.1,0.29356]
[1735524939568,0.40196823,3413.2,3412.9,40.8]
[1735524939765,0.69551823,3413.2,3413.0,0.29356]
[1735524939968,0.40196823,3413.1,3412.8,0.4956]
[1735524940169,0.40196823,3413.2,3412.8,0.4956]
[1735524940475,0.40211566,3413.2,3413.1,0.29356]
[1735524941069,0.29356,3413.1,3412.9,0.29357]
[1735524941271,0.40207685,3413.0,3412.9,0.29357]
[1735524941674,0.69564685,3413.0,3412.8,0.29358]
[1735524941869,0.40207685,3413.0,3412.9,0.29357]
[1735524942069,0.40207685,3413.6,3413.5,0.29352]
[1735524942373,0.40207685,3413.7,3413.6,0.29351]
[1735524943074,0.40239648,3413.7,3413.4,40.8]
[1735524943466,3.2078,3413.8,3413.4,40.8]
[1735524943975,3.2078,3413.8,3413.7,0.2935]
[1735524944274,0.4024288,3414.0,3413.9,0.29349]
[1735524944662,0.4024288,3414.0,3413.7,6.01709605]
[1735524944663,4.7804,3414.3,3414.2,0.29346]
[1735524945872,0.29349,3413.8,3413.6,0.29351]
[1735524946073,0.93406423,3413.7,3413.6,0.29351]
[1735524946274,0.93404784,3413.7,3413.6,0.29351]
[1735524946468,0.5317,3413.7,3413.6,0.29351]
[1735524947071,0.5317,3413.7,3413.3,0.29353]
[1735524947072,0.29352,3413.5,3413.3,0.29353]
[1735524947273,3.2078,3413.5,3413.1,0.29355]
[1735524947775,0.29354,3413.3,3413.1,0.29355]
[1735524947977,0.29356,3413.1,3412.5,6.54879605]
[1735524948168,0.40248703,3412.9,3412.5,6.54879605]
[1735524948468,0.5259,3412.8,3412.7,0.29359]
[1735524948973,0.92838703,3412.8,3412.7,0.29359]
[1735524949167,0.40248703,3412.9,3412.5,6.54879605]
[1735524949367,0.40248703,3413.0,3412.8,0.29358]
[1735524949676,0.40248703,3413.0,3412.5,11.54879605]
[1735524949677,0.40248703,3413.0,3412.9,3.10286605]
[1735524949866,0.58719456,3414.0,3412.9,6.01709605]
[1735524949867,0.5259,3414.0,3412.9,6.01709605]
[1735524950069,0.5259,3414.0,3413.9,0.29349]
[1735524950767,0.81938,3414.0,3413.8,0.29349]
[1735524951376,0.5259,3414.0,3413.9,0.29349]
[1735524952477,0.5259,3414.0,3413.8,0.29349]
[1735524952872,0.5259,3414.0,3413.9,0.29349]
[1735524956482,0.5259,3414.0,3413.5,3.2078]
[1735524956483,0.81938,3414.0,3413.8,0.29349]
[1735524957872,0.29349,3413.9,3413.7,0.2935]
[1735524958081,0.5259,3414.0,3413.6,0.29351]
[1735524958279,0.5259,3414.0,3413.5,3.2078]
[1735524958879,0.5259,3414.0,3413.9,0.29349]
[1735524959480,4.2319,3414.3,3413.5,3.2078]
[1735524959677,4.2319,3414.3,3414.2,0.29346]
[1735524960975,4.2319,3414.3,3413.8,0.5178]
[1735524961272,0.29346,3414.2,3413.8,0.29349]
[1735524961478,4.2319,3414.3,3413.7,0.5334]
[1735524961674,4.2319,3414.3,3414.2,0.29346]
[1735524962280,4.52535,3414.3,3414.2,0.29346]
[1735524962577,4.52536,3414.3,3414.1,0.29346]
[1735524963184,4.52536,3414.3,3414.1,0.29347]
[1735524963777,4.2319,3414.3,3413.7,1.0742]
[1735524963977,4.2319,3414.3,3414.2,0.29346]
[1735524964175,4.2319,3414.3,3413.7,1.0742]
[1735524964387,0.29348,3414.1,3413.8,0.29349]
[1735524964686,0.29348,3414.0,3413.9,0.29349]
[1735524964982,0.29347,3414.2,3414.0,0.29348]
[1735524966479,0.29347,3414.1,3413.9,0.29348]
[1735524967385,4.2319,3414.3,3414.0,0.29348]
[1735524967581,0.29346,3414.2,3414.0,0.29348]
[1735524968085,0.29347,3414.1,3414.0,0.29348]
[1735524968286,0.29347,3414.1,3413.7,0.5334]
[1735524968482,0.29347,3414.1,3413.9,0.29348]
[1735524970189,4.2319,3414.3,3413.7,0.5334]
[1735524970383,4.2319,3414.3,3414.2,0.29346]
[1735524970582,3.2078,3414.3,3414.2,0.29346]
[1735524970782,3.50125,3414.3,3414.2,0.29346]
[1735524970986,3.50125,3414.3,3414.1,0.29346]
[1735524971586,0.29347,3414.2,3414.0,0.29347]
[1735524971889,0.29351,3413.7,3413.5,8.08383163]
[1735524972091,0.73366,3414.2,3413.5,8.08383163]
[1735524972092,0.29351,3413.6,3413.5,8.08383163]
[1735524972587,0.29351,3413.7,3413.5,8.08383163]
[1735524972787,0.29351,3413.7,3413.5,3.50132]
[1735524972988,0.29351,3413.7,3413.6,0.29351]
[1735524973482,0.47703451,3413.7,3413.6,0.29351]
[1735524974984,0.18352451,3413.7,3413.6,0.29351]
[1735524975990,0.47702451,3413.7,3413.6,0.29351]
[1735524976386,0.18352451,3413.7,3413.6,0.29351]
[1735524980189,0.18351107,3413.7,3413.6,0.29351]
[1735524980386,0.18351107,3413.7,3413.6,4.87602163]
[1735524980789,0.18349737,3413.7,3413.6,4.87602163]
[1735524980987,0.18349737,3413.7,3413.6,9.87602163]
[1735524981188,5.4949281,3414.3,3414.2,0.29346]
[1735524981388,5.4949281,3414.3,3414.2,2.64122141]
[1735524981585,3.2078,3414.3,3414.2,2.64122141]
[1735524982995,3.2078,3414.3,3414.2,7.25230296]
[1735524983599,3.2078,3414.3,3414.2,4.90454155]
[1735524983789,3.50125,3414.3,3414.2,4.61108155]
[1735524983985,3.50125,3414.3,3414.2,3.87038155]
[1735524984194,5.4949281,3414.7,3414.5,0.29343]
[1735524984390,5.4949281,3414.7,3414.6,0.29343]
[1735524984591,3.2078,3414.7,3414.6,0.29343]
[1735524986391,2.28457869,3414.8,3414.7,0.29342]
[1735524988093,2.28457869,3414.8,3414.7,0.73852]
[1735524989204,0.18344792,3414.8,3414.7,3.94632]
[1735524989698,0.18343554,3414.8,3414.7,3.94632]
[1735524989892,0.4038845,3414.8,3414.7,3.94632]
[1735524990300,0.58732004,3414.8,3414.7,3.94632]
[1735524990697,0.4038845,3414.8,3414.7,3.94632]
[1735524990899,0.58732004,3414.8,3414.7,56.45566652]